Cogmind - Beta 17 @@@ ROGUE MODE // 2026.07.31 @ 22:20:54 Player: AL-EF0 Result: Destroyed by D-53 Grenadier with Mini Grenade Launcher Performance ------------- Evolutions (0) 0 Regions Visited (4) 800 Robots Destroyed (34) 170 Value Destroyed (436) 436 Prototype IDs (25) 500 Alien Tech Used (0) 0 Bonus (300) 300 TOTAL SCORE: 2206 Bonus ------- Aligned with FarCom 300 Cogmind --------- Core Integrity 0/250 Matter 269/300 Energy 100/100 System Corruption 0% Temperature Cool (0) Movement Core (450) Ox8 Location -9/Mines Parts ------- > --- POWER (1) -------- (None) > --- PROPULSION (2) --- Light Treads Light Treads > --- UTILITY (2) ------ Large Storage Unit Weapon Shielding > --- WEAPON (2) ------- EM Pulse Gun Medium Laser > --- INVENTORY (15) --- Ion Engine Wheel Wheel Improved Heat Sink Large Storage Unit Seismic Detector Modified TNC Splice Drone Bay Small Laser Light Assault Rifle Mining Laser Peak State ------------ > --- POWER ------------ Ion Engine > --- PROPULSION ------- Light Treads Compact Wheel > --- UTILITY ---------- Large Storage Unit Seismic Detector > --- WEAPON ----------- Medium Laser Assault Rifle > --- INVENTORY -------- Ion Engine Light Treads Light Treads Light Treads Wheel Wheel Improved Heat Sink Small Storage Unit Modified TNC Weapon Shielding EM Pulse Gun Medium Laser Small Laser Light Assault Rifle Mining Laser [Rating: 9] Favorites ----------- Power Ion Engine Engine Ion Engine Propulsion Light Treads Treads Light Treads Wheel Compact Wheel Utility Seismic Detector Device Seismic Detector Storage Small Storage Unit Protection Weapon Shielding Weapon Assault Rifle Energy Gun Medium Laser Ballistic Gun Assault Rifle Special Weapon Mining Laser Build | -11 -10 -10 -10 -9 ------- Run | Yrd Mat Min Exi Min Slots Evolved . | . . . . . Power . | . . . . . Propulsion . | . . . . . Utility . | . . . . . Weapon . | . . . . . Parts Attached 19 | 7 4 1 2 5 Power 1 | 1 . . . . Engine 1 | 1 . . . . Core . | . . . . . Reactor . | . . . . . Propulsion 6 | 2 2 . . 2 Treads 4 | 1 1 . . 2 Leg . | . . . . . Wheel 2 | 1 1 . . . Hover . | . . . . . Flight . | . . . . . Utility 5 | 2 1 . 2 . Device 1 | 1 . . . . Storage 3 | 1 1 . 1 . Processor . | . . . . . Hackware . | . . . . . Protection 1 | . . . 1 . Artifact . | . . . . . Weapon 7 | 2 1 1 . 3 Energy Gun 3 | . . 1 . 2 Energy Cannon . | . . . . . Ballistic Gun 3 | 2 . . . 1 Ballistic Cannon . | . . . . . Launcher . | . . . . . Special Weapon 1 | . 1 . . . Impact Weapon . | . . . . . Slashing Weapon . | . . . . . Piercing Weapon . | . . . . . Special Melee Weapon . | . . . . . Unidentified Prototypes . | . . . . . Parts Lost 6 | . . 1 . 5 Power 1 | . . . . 1 Propulsion 2 | . . . . 2 Utility . | . . . . . Weapon 3 | . . 1 . 2 Highest Loss Streak 5 | . . 1 . 5 To Critical Strikes . | . . . . . Average Backups 10 | 4 9 14 14 14 Power . | . 1 1 1 1 Propulsion 4 | 3 3 5 5 4 Utility 2 | . 1 3 3 4 Weapon 3 | . 2 5 5 5 Tool/Special . | . . . . . Unused Backups 15 | . 6 . . 9 Power 2 | . 1 . . 1 Propulsion 8 | . 5 . . 3 Utility 3 | . . . . 3 Weapon 2 | . . . . 2 Tool/Special . | . . . . . Average Slot Usage (%) 100 | . 100 100 100 100 Engine 14 | . 14 14 14 14 Treads 14 | . 14 14 14 15 Wheel 13 | . 14 14 14 12 Device 13 | . 14 14 14 . Storage 14 | . 14 14 14 14 Energy Gun 3 | . . 13 14 14 Ballistic Gun 23 | . 27 15 14 14 Peak Build Rating 9 | 7 8 8 9 9 Average Rating 7 | 5 7 8 8 8 On Entrance 6 | . 7 8 8 9 Avg Prop Armor Cover (%) 11 | 12 10 12 13 13 Naked Turns . | . . . . . Heaviest Build 30 | 15 30 30 30 30 Greatest Support 20 | 20 20 20 16 16 Greatest Overweight (x) 1 | . 1 1 1 1 Average Overweight (x) . | . . 1 1 1 Largest Inventory Capacity 15 | 8 15 15 15 15 Average Capacity 11 | 7 10 15 15 15 Most Carried 15 | 8 15 15 15 15 Average Carried 10 | 4 9 14 14 14 Final Capacity 15 | 8 15 15 15 15 Final Carried 15 | 8 15 14 15 11 Class Distribution -------------------- 100% | Mutant Dominant Class ---------------- Mutant | -10/Materials Mutant | -10/Mines Mutant | -10/Exiles Mutant | -9/Mines Resources | -11 -10 -10 -10 -9 ----------- Run | Yrd Mat Min Exi Min Matter Collected 1059 | 354 612 63 . 30 Remotely . | . . . . . Salvage Created 1091 | 190 825 76 . . Parts 71 | 12 48 11 . . Haulers Intercepted 2 | . 2 . . . Recyclers Shooed 5 | . 5 . . . Parts Field Recycled . | . . . . . Retrieved Matter . | . . . . . Parts Self-Destructed . | . . . . . Prevented . | . . . . . Parts Restored . | . . . . . Kills | -11 -10 -10 -10 -9 ------- Run | Yrd Mat Min Exi Min Combat Hostiles Destroyed 18 | . 12 6 . . Guns 18 | . 12 6 . . Classes Destroyed 8 | 2 6 . . . Worker 2 | . 2 . . . Builder 3 | . 3 . . . Tunneler 4 | 4 . . . . Hauler 2 | . 2 . . . Recycler 4 | 1 3 . . . Watcher 1 | . 1 . . . Swarmer 12 | . 6 6 . . Grunt 6 | . 6 . . . Best Kill Streak 3 | 2 3 3 . . Combat Bots Only 3 | . 3 3 . . Max Kills in Single Turn 2 | 1 1 2 . . Gunslinging 1 | . . 1 . . Exploded . | . . . . . Melee . | . . . . . Uniques/NPCs Destroyed . | . . . . . Combat | -11 -10 -10 -10 -9 -------- Run | Yrd Mat Min Exi Min Hostile Shots Fired 108 | . 64 30 . 14 Missed 36 | . 25 11 . . Hits 72 | . 39 19 . 14 Projectile 72 | . 39 19 . 14 AOE 14 | . . . . 14 Critical Strikes 1 | . 1 . . . Damage Taken 1150 | . 393 152 . 605 Core 274 | . 113 10 . 151 Absorbed by Shields . | . . . . . Redirected to Shielding 48 | . . . . 48 Core Remaining (%) 100 | 100 . . . . Volleys Fired 124 | 14 94 12 . 4 Largest 2 | 2 2 2 . 2 Hottest 100 | 40 100 70 . 70 Shots Fired 246 | 28 186 24 . 8 Gun 244 | 28 184 24 . 8 Cannon . | . . . . . Launcher . | . . . . . Special 2 | . 2 . . . Kinetic 232 | 28 184 16 . 4 Thermal 14 | . 2 8 . 4 Explosive . | . . . . . Electromagnetic . | . . . . . Robot Hit Streak 12 | 6 12 2 . 4 Robot Miss Streak 4 | 2 4 4 . 2 Penetration Max . | . . . . . Secondary Targets 1 | . . 1 . . Max Gunslinging Chain 1 | . . 1 . . Shots Hit Robots 143 | 18 110 9 . 6 Core Hits 50 | 6 36 6 . 2 Critical Kills . | . . . . . Critical Parts Destroyed . | . . . . . Critical Strikes 1 | . . . . 1 Burn 1 | . . . . 1 Melee Attacks . | . . . . . Impact . | . . . . . Slashing . | . . . . . Piercing . | . . . . . Sneak Attacks . | . . . . . Combat Hostiles . | . . . . . Follow-up Attacks . | . . . . . Damage Inflicted 1800 | 244 1381 106 . 69 Guns 1800 | 244 1381 106 . 69 Cannons . | . . . . . Explosions . | . . . . . Melee . | . . . . . Ramming . | . . . . . Kinetic 1748 | 244 1381 93 . 30 Thermal 52 | . . 13 . 39 Explosive . | . . . . . Electromagnetic . | . . . . . Impact . | . . . . . Slashing . | . . . . . Piercing . | . . . . . Highest Corruption . | . . . . . Average Corruption . | . . . . . Corruption Purged . | . . . . . Corruption Blocked . | . . . . . Overload Shots . | . . . . . Overflow Damage . | . . . . . Projectiles . | . . . . . Explosions . | . . . . . Melee . | . . . . . Knockbacks . | . . . . . Impact . | . . . . . Kinetic . | . . . . . Secondary . | . . . . . Self-Inflicted Damage . | . . . . . Shots . | . . . . . Rammed . | . . . . . Targets Rammed . | . . . . . Kicked . | . . . . . Crushed . | . . . . . Highest Temperature 63 | . 28 63 . 18 Average Temperature 24 | . 16 31 . 10 Received Heat Transfer 144 | . 144 . . . Siege Activations . | . . . . . Martial Activations . | . . . . . Shielding Activations . | . . . . . Robots Disrupted . | . . . . . Combat Hostiles . | . . . . . Robots Corrupted . | . . . . . Combat Hostiles . | . . . . . Parts Fried . | . . . . . Impact Corruptions . | . . . . . Robots Melted . | . . . . . Combat Hostiles . | . . . . . Parts Melted . | . . . . . Heat Transferred 222 | . . 37 . 185 Parts Sabotaged . | . . . . . Parts Stolen . | . . . . . Parts Stripped . | . . . . . Power Chain Reactions . | . . . . . Alert | -11 -10 -10 -10 -9 ------- Run | Yrd Mat Min Exi Min Maximum Alert Level . | . . . . . Low Security (%) 100 | 100 100 100 . 100 Level 1 . | . . . . . Level 2 . | . . . . . Level 3 . | . . . . . Level 4 . | . . . . . Level 5 . | . . . . . High Security . | . . . . . Max Security . | . . . . . Peak Influence 95 | 5 95 62 . . Initial 2 | . . 2 . . Average 19 | 1 20 26 . . Influence Increases 573 | 25 408 140 . . Destroy 0b10 Robot/C 360 | . 240 120 . . Destroy 0b10 Robot/NC 80 | 25 55 . . . Destroy Leader 76 | . 56 20 . . Successful Hack 5 | . 5 . . . Disable Machine 15 | . 15 . . . Destroy Structure 7 | . 7 . . . Lose Combat Pursuer 30 | . 30 . . . Influence Decreases 573 | 25 401 127 20 . Entered New Map 25 | . . 5 20 . Time Decay 538 | 25 401 112 . . Lost Part 10 | . . 10 . . Squads Dispatched 3 | . 3 . . . Investigation 1 | . 1 . . . Extermination . | . . . . . Reinforcement 2 | . 2 . . . Assault . | . . . . . Garrison . | . . . . . Intercept . | . . . . . Searches Triggered . | . . . . . Construction Impeded . | . . . . . Haulers Reinforced . | . . . . . Active Scanning Responses . | . . . . . Cargo Convoy Interrupts . | . . . . . Stealth | -11 -10 -10 -10 -9 --------- Run | Yrd Mat Min Exi Min Distress Signals 4 | . 4 . . . Communications Jammed . | . . . . . Distress Signals . | . . . . . Times Spotted 34 | . 26 6 . 2 Peak Tracking Total 5 | . 5 3 . 2 Tactical Retreats 2 | . 2 . . . Traps | -11 -10 -10 -10 -9 ------- Run | Yrd Mat Min Exi Min Traps Triggered . | . . . . . Indirectly . | . . . . . Trap Hack Attempts . | . . . . . Triggered . | . . . . . Disarmed . | . . . . . Reprogrammed . | . . . . . Reused . | . . . . . Traps Extracted . | . . . . . Installed . | . . . . . Triggered . | . . . . . Machines | -11 -10 -10 -10 -9 ---------- Run | Yrd Mat Min Exi Min Machines Disabled 1 | . 1 . . . Max in Single Turn 1 | . 1 . . . Machines Repaired . | . . . . . Machines Dismantled . | . . . . . Machines Sabotaged . | . . . . . Overloaded Fab Kills . | . . . . . Hacking | -11 -10 -10 -10 -9 --------- Run | Yrd Mat Min Exi Min Machines Accessed 8 | . 5 . 2 1 Terminals 5 | . 5 . . . Fabricators . | . . . . . Repair Stations . | . . . . . Recycling Units . | . . . . . Scanalyzers . | . . . . . Garrison Access . | . . . . . Total Hacks 12 | . 9 . 2 1 Successful 5 | . 2 . 2 1 Failed 7 | . 7 . . . Catastrophic 2 | . 2 . . . Database Lockouts . | . . . . . Manual 1 | . . . 1 . Terminals 9 | . 9 . . . Fabricators . | . . . . . Repair Stations . | . . . . . Recycling Units . | . . . . . Scanalyzers . | . . . . . Garrison Access . | . . . . . Terminal Hacks 5 | . 2 . 2 1 Record 1 | . . . 1 . Prototype ID Bank 2 | . 2 . . . Open Door 1 | . . . . 1 Proto ID Catalog 1 | . . . 1 . Fabricator Hacks . | . . . . . Repair Station Hacks . | . . . . . Recycling Unit Hacks . | . . . . . Scanalyzer . | . . . . . Garrison Access Hacks . | . . . . . Unauthorized Hacks . | . . . . . Terminals . | . . . . . Fabricators . | . . . . . Repair Stations . | . . . . . Recycling Units . | . . . . . Scanalyzers . | . . . . . Garrison Access . | . . . . . Data Cores Recovered . | . . . . . Used . | . . . . . Hacking Detections 3 | . 3 . . . Full Trace Events 1 | . 1 . . . Feedback Events . | . . . . . Feedback Blocked . | . . . . . Robot Schematics Acquired . | . . . . . Robots Built . | . . . . . Authchips . | . . . . . Time . | . . . . . Total Robot Build Rating . | . . . . . Part Schematics Acquired . | . . . . . Parts Built . | . . . . . Authchips . | . . . . . Time . | . . . . . Total Part Build Rating . | . . . . . Part Studies Acquired . | . . . . . Parts Repaired . | . . . . . Time . | . . . . . Parts Recycled . | . . . . . Recycled Matter . | . . . . . Retrieved Matter . | . . . . . Retrieved Components . | . . . . . Parts Scanalyzed . | . . . . . Part Schematics Acquired . | . . . . . Parts Damaged . | . . . . . Bothacking | -11 -10 -10 -10 -9 ------------ Run | Yrd Mat Min Exi Min Used RIF Installer . | . . . . . Robots Hacked . | . . . . . Non-combat . | . . . . . Combat . | . . . . . Robot Hacks Applied . | . . . . . Relay Couplers Released . | . . . . . Fabnet Peak Effective % . | . . . . . Robots Rewired . | . . . . . Allies Hacked . | . . . . . Hacks Repelled . | . . . . . Allies | -11 -10 -10 -10 -9 -------- Run | Yrd Mat Min Exi Min Total Allies . | . . . . . Largest Group . | . . . . . Highest-Rated Group . | . . . . . Highest-Rated Ally . | . . . . . Total Orders . | . . . . . Ally Attacks . | . . . . . Total Damage . | . . . . . Kills . | . . . . . Allies Corrupted . | . . . . . Allies Melted . | . . . . . Intel | -11 -10 -10 -10 -9 ------- Run | Yrd Mat Min Exi Min Active Infowar (turns) 2503 | 13 1915 266 309 . Seismic 2503 | 13 1915 266 309 . Robot Analysis Total . | . . . . . Derelict Logs Recovered 1 | . . 1 . . Drone Launches . | . . . . . Drone Recoveries . | . . . . . Exploration | -11 -10 -10 -10 -9 ------------- Run | Yrd Mat Min Exi Min Turns Passed 2733 | 160 1915 266 310 82 Spaces Moved 1441 | 85 860 195 267 34 Core 4 | 4 . . . . Treads 124 | 3 120 1 . . Legs . | . . . . . Wheels 1313 | 78 740 194 267 34 Hover . | . . . . . Flight . | . . . . . Fastest Speed 50 | 50 100 115 115 115 Average Speed 118 | 99 121 115 115 115 Slowest Speed 240 | 160 240 240 115 115 Overloaded Moves . | . . . . . Propulsion Burnouts . | . . . . . Robots Hopped . | . . . . . Potential Cave-ins . | . . . . . Cave-ins Triggered . | . . . . . Exploration Rate (%) 46 | 5 99 55 61 10 Regions Visited 4 Branch Regions 3 Pre-discovered Areas 1 | . . . 1 . Known Exits Taken . | . . . . . Unknown Exits Taken 4 | 1 1 1 1 . Scrap Searched 1 | . . . . 1 Spaces Dug 2 | . 2 . . . Terrain Destroyed 2 | . 2 . . . Melee . | . . . . . Projectile 2 | . 2 . . . AOE . | . . . . . Terrain Rammed . | . . . . . Walls Destroyed . | . . . . . Machines Disabled . | . . . . . Actions | -11 -10 -10 -10 -9 --------- Run | Yrd Mat Min Exi Min Total 2223 | 128 1544 211 270 70 Wait 603 | 15 560 4 . 24 Move 1437 | 84 859 194 266 34 Hop . | . . . . . Pick Up 24 | 8 14 . 1 1 Fast Attach 7 | 7 . . . . Attach 5 | . . 1 . 4 Detach . | . . . . . Swap 10 | . 7 . 2 1 Drop 13 | . 10 . 1 2 Fire 124 | 14 94 12 . 4 Melee . | . . . . . Ram . | . . . . . Kick . | . . . . . Crush . | . . . . . Escape Stasis . | . . . . . Rewire . | . . . . . Trap . | . . . . . Miscellaneous . | . . . . . Route ------- -11/Scrapyard -10/Materials (discovered 6 exits: [*Mat x3] / [*Min x2] / [*Sub]) -10/Mines (discovered 3 exits: [*Mat x2] / *Exi) -10/Exiles (discovered 2 exits: *Min x2) -9/Mines History --------- Turn | Location | Event 45 | -11/Scrapyard | Discovered new exit (range 13) 161 | -11/Scrapyard | Entered Materials 179 | -10/Materials | Discovered new exit (range 16) 310 | -10/Materials | Build established: Mutant 428 | -10/Materials | Discovered new exit (range 16) 460 | -10/Materials | Discovered new exit (range 6) 855 | -10/Materials | Discovered new exit (range 11) 1383 | -10/Materials | Discovered new exit (range 3) 1967 | -10/Materials | Discovered new exit (range 16) 2076 | -10/Materials | Entered Mines 2099 | -10/Mines | Discovered new exit (range 16) 2143 | -10/Mines | Learned Materials stockpile data 2229 | -10/Mines | Deemed a non-threat by the Exiles lab entrance 2229 | -10/Mines | Discovered new exit (range 5) 2246 | -10/Mines | Discovered new exit (range 5) 2342 | -10/Mines | Entered Exiles 2357 | -10/Exiles | Discovered new exit (range 15) 2374 | -10/Exiles | Met 8R-AWN 2391 | -10/Exiles | Met EX-HEX 2436 | -10/Exiles | Met EX-DEC 2440 | -10/Exiles | Learned location of Zion (-7) 2459 | -10/Exiles | Met EX-BIN 2475 | -10/Exiles | Aligned with FarCom system 2476 | -10/Exiles | Given EX-Vault access code 2506 | -10/Exiles | Opened EX-Vault 2514 | -10/Exiles | Found Modified TNC 2540 | -10/Exiles | Warned to stay clear of 0b10 Research branches 2639 | -10/Exiles | Discovered new exit (range 11) 2652 | -10/Exiles | Left Exiles lab with Modified TNC 2652 | -10/Exiles | Entered Mines 2653 | -9/Mines | Assembled infested the area 2658 | -9/Mines | Assisted by a Guerilla fighting off Assembled 2683 | -9/Mines | Found the Drone Emporium 2688 | -9/Mines | Found Prototype Device 2702 | -9/Mines | Met a Derelict bent on vengeance 2722 | -9/Mines | Core integrity fell below 50% 2733 | -9/Mines | Core integrity fell below 20% 2734 | -9/Mines | Destroyed by D-53 Grenadier with Mini Grenade Launcher Last Messages --------------- 02695_ Found Assault Rifle. 02695_ Found 66 Matter. 02696_ Acquired 20 matter. 02699_ Dropped Assault Rifle. 02699_ K-01 Serf collects debris. 02700_ Acquired 10 matter. 02712_ 10-HW6(g) destroyed. 02717_ The unstable cave ceiling collapses. 02718_ Machine disabled. 02720_ The unstable cave ceiling collapses. 02723_ Lgt. Treads destroyed. 02723_ Com. Wheel destroyed. 02726_ The unstable cave ceiling collapses. 02727_ D-53 Grenadier suffers critical hit (Burn). 02729_ The unstable cave ceiling collapses. 02730_ Med. Laser destroyed. 02732_ The unstable cave ceiling collapses. 02732_ Assault Rifle destroyed. 02733_ The unstable cave ceiling collapses. 02734_ Ion Engine destroyed. Map ----- +----------------------------------------------------+ | ??????????????????????????? | | ??????????????????????????? | | ??????????????????????????? | | ??????????????????????????? | | ??????????????????????????? | | ??????????????????????????? | | ??????????????????????????? | | ??????????????????????????? | | ??????????????????????????? | | ??????????????????????????? | | ??????????????????????????? | | ??????????????????????????? | | ??????????????????????????? | | ??????????????????????????? | | ??????????????????????????? | | ??????????????????????????? | | ??????????????????????????? | | ?????????????##??#????????? | | ??????????#?# ## #????????? | | ??????### ## # ???????? | | ###### # ????????? | | # #?????????? | | %!?????????? | | # d ## #?????????? | | d ????????? | | @ # #??????? | | #?????????? | | #?????????? | | X ###?????????? | | ## #???????????? | | ##### ##???????????? | | ????# # #????????????? | | ????## ## #????????????? | | ?????# ##### #????????????? | | ?????# ##### #????????????? | | ?????# #????????????? | | ?????####### ###??????????? | | ?????# #??????????? | | ?????# """ """ #??????????? | | ?????# """ """ #??????????? | | ?????# """ """ #??????????? | | ?????# #??????????? | | ?????# #??????????? | | ?????# #??????????? | | ?????# #??????????? | | ?????# #??????????? | | ?????###########??????????? | | ??????????????????????????? | | ??????????????????????????? | | ??????????????????????????? | +----------------------------------------------------+ Best States ------------- Heat Dissipation 25 Energy Generation 10 Energy Capacity 250 Matter Stores 300 Matter Capacity 300 Sight Range 16 Terrain Scan Density 10 Weapon Shielding 33 Evasion (%) 40 Recoil Reduction 1 Item Schematics ----------------- None Robot Schematics ------------------ None Fabricated ------------ Nothing Repaired ---------- Nothing Studied --------- None Alien Tech Used ----------------- None Achievements -------------- None Challenges ------------ None Game ------ Seed HeartCoolingRedirector Manual? 0 Play Time 00:37:54 Cumulative 178.5 hours Start 2026.07.31 @ 21:36:35 End 2026.07.31 @ 22:20:54 Sessions 1 Manual Loads 0 Difficulty Rogue Special Mode None Game No. 25 Rogue 13 Adventurer 5 Explorer 7 Win Type - Total 9 Types 8/0/1/0/0/0/0/0/0/0 Lore% 49 Gallery% 59 Achievement% 42 Wizard Run 0 Options --------- Layout 0 ASCII 0 Keyboard 0 Movement Arrows Keybinds 0 Fullscreen 1 Font 18/Smallcaps Map View 76x50 Zoom Use 0% Tactical HUD 1 Map Filters NONE Filters NONE Steam 1 RUN: ca93355e-d05d-4458-94d9-2d3405ed4bba